[Event "The Kvibergspelen 2023"]
[Site "Kviberg Park Hotel & Conference, Krutvagen 2, Gothenburg, Sweden"]
[Date "2023.09.17"]
[Round "7.19"]
[White "Dingertz, Erik"]
[Black "Bengtsson, Siv"]
[Result "1/2-1/2"]
[TimeControl "15 minutes + 5 seconds per move from move one (Round 1 - 4) / 90 minutes + 30 seconds per move from move one (Round 5 - 8)"]
[WhiteFideId "1741578"]
[BlackFideId "1701673"]
[WhiteElo "2140"]
[BlackElo "1995"]

1. d4 {[%clk 01:30:54]} {[%emt 00:00:05]} Nf6 {[%clk 01:30:50]} {[%emt
00:00:11]} 2. c4 {[%clk 01:31:18]} {[%emt 00:00:06]} e6 {[%clk 01:31:03]}
{[%emt 00:00:17]} 3. g3 {[%clk 01:31:42]} {[%emt 00:00:06]} Bb4+ {[%clk
01:31:15]} {[%emt 00:00:18]} 4. Bd2 {[%clk 01:32:06]} {[%emt 00:00:06]} a5
{[%clk 01:30:24]} {[%emt 00:01:21]} 5. Bg2 {[%clk 01:31:27]} {[%emt 00:01:09]}
d6 {[%clk 01:29:58]} {[%emt 00:00:55]} 6. Nf3 {[%clk 01:30:18]} {[%emt
00:01:40]} Nbd7 {[%clk 01:27:51]} {[%emt 00:02:37]} 7. O-O {[%clk 01:27:37]}
{[%emt 00:03:11]} e5 {[%clk 01:25:09]} {[%emt 00:03:12]} 8. e3 {[%clk
01:12:19]} {[%emt 00:15:48]} Bxd2 {[%clk 01:11:12]} {[%emt 00:14:26]} 9. Nfxd2
{[%clk 01:08:15]} {[%emt 00:04:35]} O-O {[%clk 01:11:18]} {[%emt 00:00:24]} 10.
Nc3 {[%clk 01:08:40]} Re8 {[%clk 01:09:50]} {[%emt 00:02:03]} 11. Qc2 {[%clk
01:07:26]} Nf8 {[%clk 01:08:30]} {[%emt 00:03:33]} 12. a3 {[%clk 01:02:54]} Ng6
{[%clk 01:05:51]} {[%emt 00:08:11]} 13. b4 {[%clk 01:01:49]} c6 {[%clk
01:03:44]} {[%emt 00:04:13]} 14. d5 {[%clk 00:59:15]} Bd7 {[%clk 00:59:17]}
{[%emt 00:07:58]} 15. Nde4 {[%clk 00:57:41]} Nxe4 {[%clk 00:58:19]} {[%emt
00:03:34]} 16. Nxe4 {[%clk 00:56:39]} Bf5 {[%clk 00:46:52]} {[%emt 00:13:29]}
17. Qd2 {[%clk 00:55:01]} cxd5 {[%clk 00:39:09]} {[%emt 00:10:21]} 18. Qxd5
{[%clk 00:54:39]} Be6 {[%clk 00:39:12]} {[%emt 00:01:19]} 19. Qxd6 {[%clk
00:54:02]} Bxc4 {[%clk 00:38:19]} {[%emt 00:02:30]} 20. Rfd1 {[%clk 00:54:24]}
Bb3 {[%clk 00:23:33]} {[%emt 00:15:25]} 21. Qxd8 {[%clk 00:51:26]} Raxd8 {[%clk
00:22:15]} {[%emt 00:05:16]} 22. Rxd8 {[%clk 00:51:49]} Rxd8 {[%clk 00:22:42]}
{[%emt 00:00:10]} 23. Nc5 {[%clk 00:52:12]} a4 {[%clk 00:19:44]} {[%emt
00:03:35]} 24. Bxb7 {[%clk 00:51:15]} Ne7 {[%clk 00:19:56]} {[%emt 00:01:43]}
25. Kf1 {[%clk 00:45:05]} Bc4+ {[%clk 00:19:29]} {[%emt 00:07:38]} 26. Ke1
{[%clk 00:45:26]} Bb5 {[%clk 00:19:54]} {[%emt 00:00:15]} 27. Rd1 {[%clk
00:44:53]} Rxd1+ {[%clk 00:20:12]} {[%emt 00:01:15]} 28. Kxd1 {[%clk 00:45:20]}
f5 {[%clk 00:20:00]} {[%emt 00:00:44]} 29. Kd2 {[%clk 00:45:08]} Kf7 {[%clk
00:20:11]} {[%emt 00:01:02]} 30. Bf3 {[%clk 00:44:55]} Nc8 {[%clk 00:19:51]}
{[%emt 00:01:29]} 31. Be2 {[%clk 00:37:10]} Bxe2 {[%clk 00:16:18]} {[%emt
00:12:22]} 32. Kxe2 {[%clk 00:37:35]} Nb6 {[%clk 00:16:45]} {[%emt 00:00:07]}
33. e4 {[%clk 00:35:13]} g6 {[%clk 00:15:46]} {[%emt 00:04:21]} 34. Kd3 {[%clk
00:34:01]} Ke7 {[%clk 00:15:42]} {[%emt 00:02:16]} 35. f4 {[%clk 00:30:26]} Kd6
{[%clk 00:09:26]} {[%emt 00:10:52]} 36. Nb7+ {[%clk 00:29:50]} Kc7 {[%clk
00:09:30]} {[%emt 00:01:31]} 37. Na5 {[%clk 00:30:02]} exf4 {[%clk 00:08:00]}
{[%emt 00:02:17]} 38. gxf4 {[%clk 00:30:27]} fxe4+ {[%clk 00:07:57]} {[%emt
00:00:40]} 39. Kxe4 {[%clk 00:30:52]} Kd6 {[%clk 00:06:34]} {[%emt 00:01:57]}
40. Kd4 {[%clk 00:28:01]} Nd5 {[%clk 00:05:27]} {[%emt 00:04:59]} 41. Nc4+
{[%clk 00:27:56]} Ke6 {[%clk 00:05:43]} {[%emt 00:00:48]} 42. Nb2 {[%clk
00:28:09]} Nxf4 {[%clk 00:05:27]} {[%emt 00:01:03]} 43. Nxa4 {[%clk 00:28:34]}
Kd6 {[%clk 00:05:34]} {[%emt 00:00:28]} 44. Nc3 {[%clk 00:28:07]} Ne6+ {[%clk
00:05:36]} {[%emt 00:01:25]} 45. Kc4 {[%clk 00:28:24]} g5 {[%clk 00:05:55]}
{[%emt 00:00:24]} 46. Nb5+ {[%clk 00:27:18]} Kd7 {[%clk 00:05:27]} {[%emt
00:02:35]} 47. a4 {[%clk 00:25:34]} {[%emt 00:02:12]} h5 {[%clk 00:05:20]}
{[%emt 00:00:38]} 48. Kd5 {[%clk 00:25:17]} {[%emt 00:00:48]} g4 {[%clk
00:04:42]} {[%emt 00:01:07]} 49. Nd4 {[%clk 00:24:45]} {[%emt 00:01:02]} Ng5
{[%clk 00:02:35]} {[%emt 00:02:37]} 50. Ke5 {[%clk 00:16:38]} {[%emt 00:08:38]}
Nf3+ {[%clk 00:02:44]} {[%emt 00:00:21]} 51. Kf4 {[%clk 00:17:04]} {[%emt
00:00:04]} Nxd4 {[%clk 00:02:54]} {[%emt 00:00:19]} 52. Kg5 {[%clk 00:17:29]}
{[%emt 00:00:05]} Nf3+ {[%clk 00:02:48]} {[%emt 00:00:36]} 53. Kxh5 {[%clk
00:17:51]} {[%emt 00:00:08]} Nxh2 {[%clk 00:03:07]} {[%emt 00:00:11]} 54. Kh4
{[%clk 00:18:15]} {[%emt 00:00:06]} Kc6 {[%clk 00:02:17]} {[%emt 00:01:21]} 55.
Kg3 {[%clk 00:18:40]} {[%emt 00:00:05]} Nf1+ {[%clk 00:02:38]} {[%emt
00:00:08]} 56. Kxg4 {[%clk 00:19:04]} {[%emt 00:00:06]} Ne3+ {[%clk 00:02:41]}
{[%emt 00:00:27]} 57. Kf3 {[%clk 00:19:22]} {[%emt 00:00:12]} Nc2 {[%clk
00:03:02]} {[%emt 00:00:09]} 58. b5+ {[%clk 00:19:38]} {[%emt 00:00:14]} Kc5
{[%clk 00:03:01]} {[%emt 00:00:31]} 59. Ke4 {[%clk 00:20:02]} {[%emt 00:00:06]}
Na3 {[%clk 00:02:47]} {[%emt 00:00:44]} 60. Kd3 {[%clk 00:20:23]} {[%emt
00:00:09]} Nxb5 {[%clk 00:02:59]} {[%emt 00:00:18]} 61. axb5 {[%clk 00:20:51]}
{[%emt 00:00:03]} Kxb5 {[%clk 00:03:22]} {[%emt 00:00:07]} 62. Kd4 {[%clk
00:21:13]} {[%emt 00:00:04]} 1/2-1/2

[Event "The Kvibergspelen 2023"]
[Site "Kviberg Park Hotel & Conference, Krutvagen 2, Gothenburg, Sweden"]
[Date "2023.09.17"]
[Round "7.20"]
[White "Bohman Karlholm, Adrian"]
[Black "Valcu, Lavinia"]
[Result "1/2-1/2"]
[TimeControl "15 minutes + 5 seconds per move from move one (Round 1 - 4) / 90 minutes + 30 seconds per move from move one (Round 5 - 8)"]
[WhiteFideId "1720643"]
[BlackFideId "1752197"]
[WhiteElo "2134"]
[BlackElo "1956"]

1. d4 {[%clk 01:30:57]} {[%emt 00:00:03]} e6 {[%clk 01:30:40]} {[%emt
00:00:21]} 2. c4 {[%clk 01:30:57]} {[%emt 00:00:30]} b6 {[%clk 01:31:04]}
{[%emt 00:00:06]} 3. Nf3 {[%clk 01:29:22]} {[%emt 00:02:04]} Bb7 {[%clk
01:30:28]} {[%emt 00:01:07]} 4. e3 {[%clk 01:28:29]} {[%emt 00:01:22]} f5
{[%clk 01:29:59]} {[%emt 00:01:00]} 5. Be2 {[%clk 01:26:36]} {[%emt 00:02:23]}
Nf6 {[%clk 01:29:28]} {[%emt 00:01:01]} 6. O-O {[%clk 01:25:06]} {[%emt
00:02:00]} Be7 {[%clk 01:16:43]} {[%emt 00:13:15]} 7. Nc3 {[%clk 01:22:46]}
{[%emt 00:02:50]} O-O {[%clk 01:12:46]} {[%emt 00:04:27]} 8. a3 {[%clk
01:21:01]} {[%emt 00:02:15]} Ne4 {[%clk 01:08:45]} {[%emt 00:04:31]} 9. Nxe4
{[%clk 01:18:51]} {[%emt 00:02:39]} fxe4 {[%clk 01:02:54]} {[%emt 00:06:22]} 10.
Nd2 {[%clk 01:18:26]} {[%emt 00:00:54]} Bd6 {[%clk 00:41:27]} {[%emt 00:21:57]}
11. Qe1 {[%clk 00:57:53]} {[%emt 00:21:03]} Qg5 {[%clk 00:34:25]} {[%emt
00:07:33]} 12. f4 {[%clk 00:54:49]} {[%emt 00:03:34]} Qh6 {[%clk 00:27:06]}
{[%emt 00:07:49]} 13. Bd1 {[%clk 00:41:51]} {[%emt 00:13:27]} c5 {[%clk
00:23:47]} {[%emt 00:03:50]} 14. g3 {[%clk 00:41:16]} {[%emt 00:01:05]} Bc7
{[%clk 00:22:09]} {[%emt 00:02:08]} 15. b4 {[%clk 00:35:20]} {[%emt 00:06:26]}
d5 {[%clk 00:10:39]} {[%emt 00:12:01]} 16. bxc5 {[%clk 00:30:24]} {[%emt
00:05:25]} bxc5 {[%clk 00:10:43]} {[%emt 00:00:26]} 17. cxd5 {[%clk 00:26:23]}
{[%emt 00:04:31]} exd5 {[%clk 00:10:59]} {[%emt 00:00:14]} 18. dxc5 {[%clk
00:22:57]} {[%emt 00:03:55]} Nd7 {[%clk 00:11:08]} {[%emt 00:00:21]} 19. Nb3
{[%clk 00:22:52]} {[%emt 00:00:36]} Ba6 {[%clk 00:10:36]} {[%emt 00:01:02]} 20.
Be2 {[%clk 00:22:22]} {[%emt 00:00:59]} Rab8 {[%clk 00:09:36]} {[%emt
00:01:31]} 21. Bxa6 {[%clk 00:15:20]} {[%emt 00:07:32]} Qxa6 {[%clk 00:09:38]}
{[%emt 00:00:28]} 22. Qc3 {[%clk 00:13:56]} {[%emt 00:01:53]} Qb5 {[%clk
00:01:15]} {[%emt 00:08:54]} 23. Rb1 {[%clk 00:10:49]} {[%emt 00:03:37]} Nxc5
{[%clk 00:01:26]} {[%emt 00:00:18]} 24. Nxc5 {[%clk 00:10:22]} {[%emt
00:00:58]} Qxb1 {[%clk 00:01:52]} {[%emt 00:00:04]} 25. Nd7 {[%clk 00:09:15]}
{[%emt 00:01:36]} Qb7 {[%clk 00:01:18]} {[%emt 00:01:04]} 26. Nxf8 {[%clk
00:09:14]} {[%emt 00:00:32]} Rxf8 {[%clk 00:01:29]} {[%emt 00:00:19]} 27. Rd1
{[%clk 00:08:56]} {[%emt 00:00:47]} Bb6 {[%clk 00:01:15]} {[%emt 00:00:44]} 28.
Qe5 {[%clk 00:08:44]} {[%emt 00:00:42]} Rc8 {[%clk 00:01:17]} {[%emt 00:00:28]}
29. Bd2 {[%clk 00:08:30]} {[%emt 00:00:44]} Kh8 {[%clk 00:00:45]} {[%emt
00:01:02]} 30. Rc1 {[%clk 00:08:17]} {[%emt 00:00:44]} Rxc1+ {[%clk 00:00:43]}
{[%emt 00:00:32]} 31. Bxc1 {[%clk 00:08:45]} {[%emt 00:00:01]} h6 {[%clk
00:00:49]} {[%emt 00:00:25]} 32. Bd2 {[%clk 00:05:09]} {[%emt 00:04:06]} Qf7
{[%clk 00:00:43]} {[%emt 00:00:35]} 33. g4 {[%clk 00:04:49]} {[%emt 00:00:50]}
Kh7 {[%clk 00:00:37]} {[%emt 00:00:36]} 34. Kf2 {[%clk 00:04:31]} {[%emt
00:00:48]} Bc7 {[%clk 00:00:35]} {[%emt 00:00:33]} 35. Qd4 {[%clk 00:04:21]}
{[%emt 00:00:39]} Bb6 {[%clk 00:00:51]} {[%emt 00:00:15]} 36. Qe5 {[%clk
00:03:30]} {[%emt 00:01:20]} 1/2-1/2

[Event "The Kvibergspelen 2023"]
[Site "Kviberg Park Hotel & Conference, Krutvagen 2, Gothenburg, Sweden"]
[Date "2023.09.17"]
[Round "8.1"]
[White "Sivuk, Vitaly"]
[Black "Seo, Jung Min"]
[Result "1/2-1/2"]
[TimeControl "15 minutes + 5 seconds per move from move one (Round 1 - 4) / 90 minutes + 30 seconds per move from move one (Round 5 - 8)"]
[WhiteTitle "GM"]
[BlackTitle "IM"]
[WhiteFideId "14116502"]
[BlackFideId "1734687"]
[WhiteElo "2461"]
[BlackElo "2462"]

1. d4 {[%clk 01:28:40]} {[%emt 00:02:19]} Nf6 {[%clk 01:30:59]} {[%emt
00:00:02]} 2. c4 {[%clk 01:28:58]} {[%emt 00:00:13]} e6 {[%clk 01:31:28]} 3.
Nf3 {[%clk 01:29:12]} {[%emt 00:00:14]} b6 {[%clk 01:31:48]} {[%emt 00:00:12]}
4. g3 {[%clk 01:29:27]} {[%emt 00:00:14]} Ba6 {[%clk 01:32:11]} {[%emt
00:00:08]} 5. b3 {[%clk 01:29:40]} {[%emt 00:00:16]} Bb4+ {[%clk 01:32:33]}
{[%emt 00:00:09]} 6. Bd2 {[%clk 01:29:57]} {[%emt 00:00:12]} Be7 {[%clk
01:32:53]} {[%emt 00:00:10]} 7. Nc3 {[%clk 01:30:11]} {[%emt 00:00:15]} d5
{[%clk 01:33:14]} {[%emt 00:00:10]} 8. cxd5 {[%clk 01:30:31]} {[%emt 00:00:10]}
exd5 {[%clk 01:33:40]} {[%emt 00:00:05]} 9. Bg2 {[%clk 01:30:51]} {[%emt
00:00:08]} Bb7 {[%clk 01:33:02]} {[%emt 00:01:09]} 10. O-O {[%clk 01:30:06]}
{[%emt 00:01:14]} O-O {[%clk 01:32:16]} {[%emt 00:01:17]} 11. Qc2 {[%clk
01:29:14]} {[%emt 00:01:21]} Nbd7 {[%clk 01:29:50]} {[%emt 00:02:58]} 12. Rad1
{[%clk 01:29:17]} {[%emt 00:00:26]} Re8 {[%clk 01:25:40]} {[%emt 00:04:41]} 13.
Bf4 {[%clk 01:27:42]} {[%emt 00:02:04]} a6 {[%clk 01:24:55]} {[%emt 00:01:16]}
14. Ne5 {[%clk 01:26:29]} {[%emt 00:01:42]} Nf8 {[%clk 01:23:12]} {[%emt
00:02:14]} 15. Bc1 {[%clk 01:21:59]} {[%emt 00:04:59]} Ne6 {[%clk 01:20:24]}
{[%emt 00:03:18]} 16. Bb2 {[%clk 01:22:17]} {[%emt 00:00:12]} Bd6 {[%clk
01:20:00]} {[%emt 00:00:55]} 17. Nc4 {[%clk 01:19:15]} {[%emt 00:03:31]} Bf8
{[%clk 01:18:54]} {[%emt 00:01:37]} 18. e3 {[%clk 01:18:57]} {[%emt 00:00:47]}
Rc8 {[%clk 01:17:10]} {[%emt 00:02:14]} 19. Ne5 {[%clk 01:13:55]} {[%emt
00:05:31]} c5 {[%clk 01:14:33]} {[%emt 00:03:09]} 20. dxc5 {[%clk 01:11:18]}
{[%emt 00:03:07]} Nxc5 {[%clk 01:14:16]} {[%emt 00:00:47]} 21. Nf3 {[%clk
01:11:03]} {[%emt 00:00:44]} Nce4 {[%clk 01:08:20]} {[%emt 00:06:27]} 22. Qd3
{[%clk 01:11:01]} {[%emt 00:00:32]} a5 {[%clk 01:07:06]} {[%emt 00:01:44]} 23.
Rc1 {[%clk 01:05:28]} {[%emt 00:06:01]} Bc5 {[%clk 01:04:31]} {[%emt 00:03:07]}
24. Nd4 {[%clk 01:01:52]} {[%emt 00:04:05]} Ng4 {[%clk 00:56:53]} {[%emt
00:08:09]} 25. Na4 {[%clk 00:54:32]} {[%emt 00:07:50]} Qg5 {[%clk 00:49:07]}
{[%emt 00:08:15]} 26. Rce1 {[%clk 00:19:38]} {[%emt 00:35:24]} Qh5 {[%clk
00:19:44]} {[%emt 00:29:53]} 27. h3 {[%clk 00:17:08]} {[%emt 00:03:01]} Ne5
{[%clk 00:20:04]} {[%emt 00:00:09]} 28. Qb5 {[%clk 00:17:26]} {[%emt 00:00:12]}
Nd6 {[%clk 00:07:12]} {[%emt 00:13:23]} 29. Qe2 {[%clk 00:11:57]} {[%emt
00:05:58]} Qxe2 {[%clk 00:07:32]} {[%emt 00:00:11]} 30. Nxe2 {[%clk 00:12:22]}
{[%emt 00:00:04]} Nd3 {[%clk 00:07:54]} {[%emt 00:00:09]} 31. Rd1 {[%clk
00:09:03]} {[%emt 00:03:48]} Nxb2 {[%clk 00:04:37]} {[%emt 00:03:48]} 32. Nxb2
{[%clk 00:09:29]} {[%emt 00:00:04]} Ne4 {[%clk 00:03:46]} {[%emt 00:01:21]} 33.
Nd3 {[%clk 00:08:16]} {[%emt 00:01:42]} Bf8 {[%clk 00:03:54]} {[%emt 00:00:22]}
34. a4 {[%clk 00:05:44]} {[%emt 00:03:02]} Nc3 {[%clk 00:00:59]} {[%emt
00:03:26]} 35. Nxc3 {[%clk 00:06:00]} {[%emt 00:00:13]} Rxc3 {[%clk 00:01:26]}
{[%emt 00:00:03]} 36. Nf4 {[%clk 00:06:18]} {[%emt 00:00:12]} Rxb3 {[%clk
00:01:53]} {[%emt 00:00:04]} 37. Rb1 {[%clk 00:06:09]} {[%emt 00:00:38]} Rb4
{[%clk 00:00:47]} {[%emt 00:01:37]} 38. Nxd5 {[%clk 00:06:24]} {[%emt
00:00:14]} Bxd5 {[%clk 00:00:32]} {[%emt 00:00:46]} 39. Bf3 {[%emt 00:00:06]}
Be4 40. Bxe4 {[%clk 00:06:47]} Rc8 {[%clk 00:00:41]} {[%emt 00:00:21]} 41. Bd5
{[%clk 00:06:07]} g6 {[%clk 00:00:52]} {[%emt 00:01:29]} 42. Rfd1 {[%clk
00:06:21]} 1/2-1/2

[Event "The Kvibergspelen 2023"]
[Site "Kviberg Park Hotel & Conference, Krutvagen 2, Gothenburg, Sweden"]
[Date "2023.09.17"]
[Round "8.2"]
[White "Golubka, Petro"]
[Black "Kistrup, Nicolai"]
[Result "1/2-1/2"]
[TimeControl "15 minutes + 5 seconds per move from move one (Round 1 - 4) / 90 minutes + 30 seconds per move from move one (Round 5 - 8)"]
[WhiteTitle "GM"]
[BlackTitle "FM"]
[WhiteFideId "14114224"]
[BlackFideId "1444816"]
[WhiteElo "2439"]
[BlackElo "2359"]

1. e4 {[%clk 01:19:54]} {[%emt 00:11:00]} c5 {[%clk 01:30:15]} {[%emt
00:00:52]} 2. Nf3 {[%clk 01:20:17]} {[%emt 00:00:06]} d6 {[%clk 01:30:26]}
{[%emt 00:00:20]} 3. d4 {[%clk 01:20:42]} {[%emt 00:00:04]} cxd4 {[%clk
01:30:52]} {[%emt 00:00:05]} 4. Nxd4 {[%clk 01:21:01]} {[%emt 00:00:10]} Nf6
{[%clk 01:31:16]} {[%emt 00:00:06]} 5. Nc3 {[%clk 01:21:26]} {[%emt 00:00:05]}
Nc6 {[%clk 01:31:21]} {[%emt 00:00:25]} 6. Bg5 {[%clk 01:21:34]} {[%emt
00:00:22]} e6 {[%clk 01:31:30]} {[%emt 00:00:21]} 7. Qd3 {[%clk 01:21:53]}
{[%emt 00:00:10]} Bd7 {[%clk 01:31:17]} {[%emt 00:00:44]} 8. O-O-O {[%clk
01:22:03]} {[%emt 00:00:21]} a6 {[%clk 01:28:00]} {[%emt 00:03:47]} 9. f4
{[%clk 01:22:01]} {[%emt 00:00:32]} Be7 {[%clk 01:26:49]} {[%emt 00:01:40]} 10.
Nf3 {[%clk 01:19:51]} {[%emt 00:02:40]} Qa5 {[%clk 01:21:44]} {[%emt 00:05:35]}
11. a3 {[%clk 01:16:33]} {[%emt 00:03:48]} Rd8 {[%clk 01:03:57]} {[%emt
00:18:16]} 12. Bh4 {[%clk 01:03:07]} {[%emt 00:13:57]} b5 {[%clk 00:52:17]}
{[%emt 00:12:10]} 13. Na2 {[%clk 00:58:34]} {[%emt 00:05:04]} b4 {[%clk
00:35:35]} {[%emt 00:17:11]} 14. Be1 {[%clk 00:41:32]} {[%emt 00:17:32]} d5
{[%clk 00:34:16]} {[%emt 00:01:49]} 15. e5 {[%clk 00:39:18]} {[%emt 00:02:43]}
Ne4 {[%clk 00:29:47]} {[%emt 00:05:00]} 16. Nd4 {[%clk 00:36:01]} {[%emt
00:03:47]} Rb8 {[%clk 00:24:46]} {[%emt 00:05:30]} 17. Nxc6 {[%clk 00:29:34]}
{[%emt 00:06:58]} Bxc6 {[%clk 00:24:52]} {[%emt 00:00:24]} 18. Kb1 {[%clk
00:28:45]} {[%emt 00:01:20]} Qb6 {[%clk 00:20:18]} {[%emt 00:05:03]} 19. axb4
{[%clk 00:26:12]} {[%emt 00:03:04]} a5 {[%clk 00:13:56]} {[%emt 00:06:51]} 20.
b5 {[%clk 00:21:10]} {[%emt 00:05:32]} Bxb5 {[%clk 00:12:05]} {[%emt 00:02:21]}
21. Qxb5+ {[%clk 00:21:11]} {[%emt 00:00:29]} Qxb5 {[%clk 00:12:28]} {[%emt
00:00:07]} 22. Bxb5+ {[%clk 00:21:39]} {[%emt 00:00:02]} Rxb5 {[%clk 00:12:51]}
{[%emt 00:00:07]} 23. c4 {[%clk 00:21:26]} {[%emt 00:00:44]} dxc4 {[%clk
00:11:15]} {[%emt 00:02:05]} 24. Rd4 {[%clk 00:21:41]} {[%emt 00:00:15]} Nc5
{[%clk 00:10:42]} {[%emt 00:01:02]} 25. Rxc4 {[%clk 00:20:28]} {[%emt
00:01:44]} O-O {[%clk 00:09:47]} {[%emt 00:01:25]} 26. Kc2 {[%clk 00:20:29]}
{[%emt 00:00:29]} Na6 {[%clk 00:06:11]} {[%emt 00:04:06]} 27. Bc3 {[%clk
00:16:30]} {[%emt 00:04:29]} Nb4+ {[%clk 00:05:19]} {[%emt 00:01:22]} 28. Bxb4
{[%clk 00:16:26]} {[%emt 00:00:34]} axb4 {[%clk 00:04:21]} {[%emt 00:01:27]} 29.
Nc1 {[%clk 00:16:45]} {[%emt 00:00:12]} f6 {[%clk 00:03:05]} {[%emt 00:01:47]}
30. exf6 {[%clk 00:16:33]} {[%emt 00:00:41]} Bxf6 {[%clk 00:02:34]} {[%emt
00:01:00]} 31. Rd1 {[%clk 00:16:18]} {[%emt 00:00:46]} e5 {[%clk 00:02:14]}
{[%emt 00:00:51]} 32. Kb3 {[%clk 00:13:44]} {[%emt 00:03:04]} exf4 {[%clk
00:02:21]} {[%emt 00:00:23]} 33. Rxf4 {[%clk 00:14:01]} {[%emt 00:00:12]} Re8
{[%clk 00:02:07]} {[%emt 00:00:45]} 34. Rf3 {[%emt 00:04:35]} Rbe5 {[%clk
00:01:09]} 35. Rd2 {[%clk 00:10:24]} {[%emt 00:01:29]} Bg5 {[%clk 00:00:47]}
{[%emt 00:00:53]} 36. Rc2 {[%clk 00:10:26]} {[%emt 00:00:28]} Re4 {[%clk
00:00:34]} {[%emt 00:00:43]} 37. Nd3 {[%clk 00:09:49]} {[%emt 00:01:07]} Rd4
{[%clk 00:00:32]} {[%emt 00:00:33]} 38. Rc4 {[%clk 00:09:40]} {[%emt 00:00:37]}
Bf6 {[%clk 00:00:35]} {[%emt 00:00:27]} 39. Rxd4 {[%clk 00:08:47]} {[%emt
00:01:24]} Bxd4 {[%clk 00:01:01]} 40. Kc4 {[%clk 00:07:59]} {[%emt 00:01:22]}
Bf6 {[%clk 00:01:07]} {[%emt 00:00:24]} 41. Kb3 {[%clk 00:05:20]} {[%emt
00:03:09]} Re2 {[%clk 00:00:43]} {[%emt 00:00:53]} 42. Rf2 {[%clk 00:05:30]}
{[%emt 00:00:21]} Re3 {[%clk 00:01:02]} {[%emt 00:00:10]} 43. Rf3 {[%clk
00:04:40]} {[%emt 00:01:21]} Re2 {[%clk 00:01:26]} {[%emt 00:00:06]} 44. Rf2
{[%clk 00:05:02]} {[%emt 00:00:08]} 1/2-1/2

[Event "The Kvibergspelen 2023"]
[Site "Kviberg Park Hotel & Conference, Krutvagen 2, Gothenburg, Sweden"]
[Date "2023.09.17"]
[Round "8.3"]
[White "Ramsdal, Jens Albert"]
[Black "Holm, Kristian Stuvik"]
[Result "1/2-1/2"]
[TimeControl "15 minutes + 5 seconds per move from move one (Round 1 - 4) / 90 minutes + 30 seconds per move from move one (Round 5 - 8)"]
[WhiteTitle "FM"]
[BlackTitle "IM"]
[WhiteFideId "1429221"]
[BlackFideId "1508083"]
[WhiteElo "2391"]
[BlackElo "2488"]

1. d4 {[%clk 01:30:56]} {[%emt 00:00:02]} Nf6 {[%clk 01:30:28]} {[%emt
00:00:30]} 2. c4 {[%clk 01:31:23]} {[%emt 00:00:06]} e6 {[%clk 01:30:36]}
{[%emt 00:00:22]} 3. Nf3 {[%clk 01:31:47]} {[%emt 00:00:06]} d5 {[%clk
01:31:00]} {[%emt 00:00:06]} 4. Nc3 {[%clk 01:32:13]} {[%emt 00:00:05]} c6
{[%clk 01:31:25]} {[%emt 00:00:04]} 5. e3 {[%clk 01:32:30]} {[%emt 00:00:13]}
Nbd7 {[%clk 01:31:51]} {[%emt 00:00:04]} 6. Be2 {[%clk 01:32:47]} {[%emt
00:00:13]} Bd6 {[%clk 01:31:36]} {[%emt 00:00:45]} 7. O-O {[%clk 01:33:10]}
{[%emt 00:00:07]} O-O {[%clk 01:32:00]} {[%emt 00:00:06]} 8. b3 {[%clk
01:33:35]} {[%emt 00:00:05]} Ne4 {[%clk 01:30:53]} {[%emt 00:01:37]} 9. Nxe4
{[%clk 01:25:35]} {[%emt 00:08:30]} dxe4 {[%clk 01:30:46]} {[%emt 00:00:37]} 10.
Nd2 {[%clk 01:25:45]} {[%emt 00:00:20]} f5 {[%clk 01:30:57]} {[%emt 00:00:19]}
11. f4 {[%clk 01:20:29]} {[%emt 00:05:46]} exf3 {[%clk 01:30:03]} {[%emt
00:01:24]} 12. Nxf3 {[%clk 01:11:31]} {[%emt 00:09:28]} e5 {[%clk 01:25:39]}
{[%emt 00:04:54]} 13. c5 {[%clk 01:05:58]} {[%emt 00:06:03]} Bc7 {[%clk
01:13:23]} {[%emt 00:12:47]} 14. Bc4+ {[%clk 01:06:18]} {[%emt 00:00:09]} Kh8
{[%clk 01:13:52]} {[%emt 00:00:02]} 15. e4 {[%clk 01:04:44]} {[%emt 00:02:04]}
f4 {[%clk 01:04:18]} {[%emt 00:10:03]} 16. Bb2 {[%clk 00:57:06]} {[%emt
00:08:09]} Qe7 {[%clk 01:02:36]} {[%emt 00:02:10]} 17. b4 {[%clk 00:52:50]}
{[%emt 00:04:47]} b6 {[%clk 00:55:09]} {[%emt 00:07:57]} 18. Kh1 {[%clk
00:44:33]} {[%emt 00:08:46]} bxc5 {[%clk 00:52:40]} {[%emt 00:03:00]} 19. bxc5
{[%clk 00:40:53]} {[%emt 00:04:09]} Rb8 {[%clk 00:50:25]} {[%emt 00:02:46]} 20.
Rb1 {[%clk 00:39:45]} {[%emt 00:01:38]} exd4 {[%clk 00:45:49]} {[%emt
00:05:06]} 21. Qxd4 {[%clk 00:39:22]} {[%emt 00:00:53]} Nf6 {[%clk 00:38:34]}
{[%emt 00:07:45]} 22. e5 {[%clk 00:28:32]} {[%emt 00:11:20]} Ng4 {[%clk
00:36:56]} {[%emt 00:02:08]} 23. e6 {[%clk 00:25:03]} {[%emt 00:03:59]} Ne3
{[%clk 00:35:14]} {[%emt 00:02:12]} 24. Rfe1 {[%clk 00:23:02]} {[%emt
00:02:31]} Re8 {[%clk 00:16:11]} {[%emt 00:19:34]} 25. Bb3 {[%clk 00:18:37]}
{[%emt 00:04:55]} Rxb3 {[%clk 00:15:21]} {[%emt 00:01:21]} 26. axb3 {[%clk
00:19:01]} {[%emt 00:00:06]} Bxe6 {[%clk 00:14:42]} {[%emt 00:01:08]} 27. Rxe3
{[%clk 00:18:10]} {[%emt 00:01:20]} fxe3 {[%clk 00:14:48]} {[%emt 00:00:25]} 28.
Re1 {[%clk 00:18:27]} {[%emt 00:00:13]} Qf8 {[%clk 00:09:43]} {[%emt 00:05:35]}
29. Rxe3 {[%clk 00:18:32]} {[%emt 00:00:25]} Bf7 {[%clk 00:09:58]} {[%emt
00:00:16]} 30. Rxe8 {[%clk 00:17:14]} {[%emt 00:01:48]} Bxe8 {[%clk 00:10:24]}
{[%emt 00:00:03]} 31. Qg4 {[%clk 00:17:20]} {[%emt 00:00:24]} Qe7 {[%clk
00:09:12]} {[%emt 00:01:42]} 32. h4 {[%clk 00:16:05]} {[%emt 00:01:45]} h6
{[%clk 00:09:01]} {[%emt 00:00:41]} 33. b4 {[%clk 00:14:10]} {[%emt 00:02:25]}
a5 {[%clk 00:07:07]} {[%emt 00:02:24]} 34. bxa5 {[%clk 00:14:14]} {[%emt
00:00:26]} Bxa5 {[%clk 00:07:13]} {[%emt 00:00:24]} 35. Qd4 {[%clk 00:12:31]}
{[%emt 00:02:12]} Bc7 {[%clk 00:06:52]} {[%emt 00:00:52]} 36. Kg1 {[%clk
00:12:42]} {[%emt 00:00:19]} Bg6 {[%clk 00:06:05]} {[%emt 00:01:17]} 37. Ne5
{[%clk 00:09:55]} {[%emt 00:03:17]} Bxe5 {[%clk 00:06:13]} {[%emt 00:00:23]} 38.
Qxe5 {[%clk 00:08:53]} {[%emt 00:00:02]} 1/2-1/2